bitfinex-derivatives/quotes_BTCF0:USTF0_20250517
["timestamp","ask_amount","ask_price","bid_price","bid_amount"]
[1747514219528,0.47656826,103250.0,103240.0,0.37181254]
[1747514220335,0.47656826,103250.0,103240.0,0.17816974]
[1747514220534,0.47656826,103250.0,103240.0,0.37181254]
[1747514220735,0.59894618,103250.0,103240.0,0.37181254]
[1747514221535,0.59894618,103250.0,103240.0,0.42103794]
[1747514222137,0.47656826,103250.0,103240.0,0.42103794]
[1747514225130,0.47656826,103250.0,103240.0,0.22739514]
[1747514225337,0.47656826,103250.0,103240.0,0.42103734]
[1747514225637,0.47656516,103250.0,103240.0,0.42103734]
[1747514229138,0.59894308,103250.0,103240.0,0.42103734]
[1747514230637,0.47656516,103250.0,103240.0,0.42103734]
[1747514235641,0.59894308,103250.0,103240.0,0.42103734]
[1747514237956,0.40532008,103250.0,103240.0,0.42103734]
[1747514238147,0.47656466,103250.0,103240.0,0.42103734]
[1747514243847,0.47656466,103250.0,103240.0,0.46635362]
[1747514246245,0.47656466,103250.0,103240.0,0.42938978]
[1747514252244,0.59894258,103250.0,103240.0,0.42938978]
[1747514254052,0.47656466,103250.0,103240.0,0.42938978]
[1747514254760,0.47656466,103250.0,103240.0,0.3840735]
[1747514256254,0.47656466,103250.0,103240.0,0.37186569]
[1747514265762,0.59894258,103250.0,103240.0,0.37186569]
[1747514266553,0.47656466,103250.0,103240.0,0.37186569]
[1747514267162,0.47656466,103250.0,103240.0,0.41718197]
[1747514267463,0.47656466,103250.0,103240.0,0.42938978]
[1747514280375,0.95974258,103250.0,103240.0,0.20554758]
[1747514280575,0.95974258,103250.0,103240.0,0.17444758]
[1747514280975,0.95974258,103250.0,103240.0,0.36808848]
[1747514281176,0.83736466,103250.0,103240.0,0.36808848]
[1747514281478,0.95974258,103250.0,103240.0,0.36808848]
[1747514282074,0.95974258,103250.0,103240.0,0.3227722]
[1747514284181,0.95974258,103250.0,103240.0,0.2745663]
[1747514287181,0.95974258,103250.0,103240.0,0.26234771]
[1747514289180,0.95974258,103250.0,103240.0,0.06870681]
[1747514289382,0.95974258,103250.0,103240.0,0.26234771]
[1747514290084,0.95974258,103250.0,103240.0,0.06870681]
[1747514291384,1.9626565,103250.0,103240.0,0.03700681]
[1747514291579,1.8658005,103250.0,103240.0,0.03700681]
[1747514292079,1.8756256,103250.0,103240.0,0.03700681]
[1747514292281,0.1936409,103240.0,103230.0,0.07214414]
[1747514292489,0.89249674,103240.0,103230.0,0.07214414]
[1747514293187,1.07249674,103240.0,103230.0,0.07214414]
[1747514294186,0.8277409,103240.0,103230.0,0.26580394]
[1747514294376,1.07249674,103240.0,103230.0,0.07214414]
[1747514295788,0.71169674,103240.0,103230.0,0.07214414]
[1747514295987,0.95011882,103240.0,103230.0,0.26580394]
[1747514296181,0.95011882,103240.0,103230.0,0.29880394]
[1747514296382,0.95011882,103240.0,103230.0,0.33000394]
[1747514297889,0.95011882,103240.0,103230.0,0.29299713]
[1747514298185,0.8277409,103240.0,103230.0,0.29299713]
[1747514298392,0.7969409,103240.0,103230.0,0.29299713]
[1747514298579,0.2425,103240.0,103230.0,0.41537505]
[1747514298785,0.18,103240.0,103230.0,0.77617505]
[1747514298984,0.373641,103240.0,103230.0,0.77617505]
[1747514299289,0.373641,103240.0,103230.0,0.65379713]
[1747514299592,0.373641,103240.0,103230.0,0.29299713]
[1747514300092,0.406141,103240.0,103230.0,0.29299713]
[1747514300391,0.41158316,103240.0,103230.0,0.29299713]
[1747514301891,0.44288316,103240.0,103230.0,0.29299713]
[1747514302093,0.56526108,103240.0,103230.0,0.29299713]
[1747514312209,0.59696108,103240.0,103230.0,0.29299713]
[1747514315406,0.59696108,103240.0,103230.0,0.34123609]
[1747514332321,0.47458316,103240.0,103230.0,0.34123609]
[1747514332529,0.59696108,103240.0,103230.0,0.34123609]
[1747514338631,0.59696108,103240.0,103230.0,0.37819491]
[1747514347040,0.28094216,103240.0,103230.0,0.37819491]
[1747514347343,0.37908326,103240.0,103230.0,0.50057283]
[1747514347843,0.37908326,103240.0,103230.0,0.86137283]
[1747514348143,0.37908326,103240.0,103230.0,0.73899491]
[1747514349043,0.41188326,103240.0,103230.0,0.73899491]
[1747514349245,0.47538326,103240.0,103230.0,0.73899491]
[1747514350246,0.18544216,103240.0,103230.0,0.73899491]
[1747514350441,0.37908366,103240.0,103230.0,0.73899491]
[1747514350749,0.18544216,103240.0,103230.0,0.73899491]
[1747514351741,0.18544216,103240.0,103230.0,0.86137283]
[1747514352151,0.00544216,103240.0,103230.0,0.86137283]
[1747514353246,0.00544216,103240.0,103230.0,0.86337283]
[1747514353846,0.00544216,103240.0,103230.0,0.86137283]
[1747514354148,0.00544216,103240.0,103230.0,0.86437283]
[1747514354348,0.00544216,103240.0,103230.0,0.86637283]
[1747514354849,0.00544216,103240.0,103230.0,0.86737283]
[1747514361761,0.00544216,103240.0,103230.0,0.97311402]
[1747514363258,0.18544216,103240.0,103230.0,0.97311402]
[1747514363553,0.18544216,103240.0,103230.0,1.38319245]
[1747514363752,0.18544216,103240.0,103230.0,1.34623363]
[1747514367563,0.18544216,103240.0,103230.0,0.62463363]
[1747514367862,0.18544216,103240.0,103230.0,1.34623363]
[1747514370866,0.18544216,103240.0,103230.0,0.62463363]
[1747514371166,0.18544216,103240.0,103230.0,1.34623363]
[1747514375660,0.15268046,103240.0,103230.0,1.46861155]
[1747514375967,0.15268046,103240.0,103230.0,1.34623363]
[1747514376367,0.15812262,103240.0,103230.0,1.34623363]
[1747514376970,0.15812262,103240.0,103230.0,1.39154672]
[1747514377163,0.15812262,103240.0,103230.0,1.51392464]
[1747514377359,0.15812262,103240.0,103230.0,1.39154672]
[1747514379067,0.15812262,103240.0,103230.0,1.40386633]
[1747514380067,0.1148992,103240.0,103230.0,1.40386633]
[1747514380368,0.1148992,103240.0,103230.0,1.34344462]
[1747514381262,0.00544216,103240.0,103230.0,1.34344462]
[1747514382169,0.18544216,103240.0,103230.0,1.34344462]
[1747514382669,0.18544216,103240.0,103230.0,1.41124723]
[1747514382870,0.18544216,103240.0,103230.0,0.68964723]
[1747514383071,0.18544216,103240.0,103230.0,1.41124723]
[1747514383773,0.18544216,103240.0,103230.0,0.68964723]
[1747514384072,0.18544216,103240.0,103230.0,1.41124723]
[1747514384275,0.18544216,103240.0,103230.0,1.44145808]
[1747514385274,0.18544216,103240.0,103230.0,1.31908016]
[1747514385467,0.18544216,103240.0,103230.0,1.44145808]
[1747514385873,0.18544216,103240.0,103230.0,0.71985808]
[1747514386074,0.18544216,103240.0,103230.0,1.44145808]
[1747514386276,0.18544216,103240.0,103230.0,0.71985808]
[1747514386476,0.18544216,103240.0,103230.0,1.44145808]
[1747514388079,0.00544216,103240.0,103230.0,1.44145808]
[1747514389178,0.18544216,103240.0,103230.0,1.44145808]
[1747514393181,0.18544216,103240.0,103230.0,0.71985808]
[1747514393376,0.18544216,103240.0,103230.0,1.44145808]
[1747514393982,0.18544216,103240.0,103230.0,0.71985808]
[1747514394182,0.18544216,103240.0,103230.0,1.44145808]
[1747514395085,0.00544216,103240.0,103230.0,1.44145808]
[1747514395787,0.0634,103250.0,103240.0,0.1936414]
[1747514395987,0.0634,103250.0,103240.0,1.15523932]
[1747514396287,0.0634,103250.0,103240.0,0.84267828]
[1747514396288,0.2434,103250.0,103240.0,0.84267828]
[1747514396487,0.2434,103250.0,103240.0,1.56427828]
[1747514396679,0.2434,103250.0,103240.0,0.84267828]
[1747514396879,0.2434,103250.0,103240.0,1.56827828]
[1747514397882,0.2434,103250.0,103240.0,1.71935826]
[1747514402893,0.2434,103250.0,103240.0,0.99775826]
[1747514403095,0.2434,103250.0,103240.0,1.71935826]
[1747514404994,0.2434,103250.0,103240.0,1.75225826]
[1747514405189,0.2434,103250.0,103240.0,1.8138563]
[1747514406197,0.2434,103250.0,103240.0,1.0922563]
[1747514406497,0.2434,103250.0,103240.0,1.8138563]
[1747514410396,0.2434,103250.0,103240.0,1.88131612]
[1747514410794,0.2434,103250.0,103240.0,1.15971612]
[1747514411100,0.2434,103250.0,103240.0,1.88131612]
[1747514412105,0.2743,103250.0,103240.0,1.88131612]
[1747514419798,0.179,103250.0,103240.0,2.00369404]
[1747514420196,0.0625,103260.0,103250.0,0.1936226]
[1747514420392,0.0927,103260.0,103250.0,0.74160052]
[1747514420596,0.0927,103260.0,103250.0,0.77420052]
[1747514420797,0.0927,103260.0,103250.0,0.98252052]
[1747514421304,0.2727,103260.0,103250.0,0.98252052]
[1747514421606,0.2727,103260.0,103250.0,0.99708435]
[1747514424506,0.2727,103260.0,103250.0,1.35788435]
[1747514428804,0.2727,103260.0,103250.0,0.63628435]
[1747514429109,0.2727,103260.0,103250.0,1.35788435]
[1747514432013,0.2727,103260.0,103250.0,0.63628435]
[1747514432213,0.2727,103260.0,103250.0,1.35788435]
[1747514432713,0.2727,103260.0,103250.0,1.51188055]
[1747514434016,0.2727,103260.0,103250.0,1.15108055]
[1747514434514,0.2727,103260.0,103250.0,1.18806586]
[1747514437817,0.2727,103260.0,103250.0,1.2003943]
[1747514438021,0.2727,103260.0,103250.0,0.8395943]
[1747514438412,0.2727,103260.0,103250.0,1.2003943]
[1747514440125,0.0927,103260.0,103250.0,1.2003943]
[1747514441619,0.001,103260.0,103250.0,1.2003943]
[1747514443327,0.001,103260.0,103250.0,1.2023943]
[1747514443527,0.001,103260.0,103250.0,1.2043943]
[1747514444529,0.001,103260.0,103250.0,1.24971704]
[1747514447529,0.001,103260.0,103250.0,1.20040329]
[1747514448933,0.001,103260.0,103250.0,0.99208329]
[1747514449135,0.001,103260.0,103250.0,1.20024329]
[1747514449737,0.001,103260.0,103250.0,1.40840329]
[1747514451938,0.001,103260.0,103250.0,1.53700849]
[1747514456041,0.001,103260.0,103250.0,1.32884849]
[1747514456235,0.001,103260.0,103250.0,1.53696849]
[1747514457139,0.181,103260.0,103250.0,1.53696849]
[1747514457531,0.18644216,103260.0,103250.0,1.53696849]
[1747514458541,0.181,103260.0,103250.0,1.53696849]
[1747514459243,0.001,103260.0,103250.0,1.53696849]
[1747514459942,0.001,103260.0,103250.0,1.67696849]
[1747514461048,0.001,103260.0,103250.0,1.55459057]
[1747514461246,0.001,103260.0,103250.0,1.67696849]
[1747514461745,0.00644216,103260.0,103250.0,1.67696849]
[1747514462833,0.001,103260.0,103250.0,1.67696849]
[1747514463145,0.181,103260.0,103250.0,1.67696849]
[1747514463549,0.181,103260.0,103250.0,1.54836329]
[1747514463846,0.18644216,103260.0,103250.0,1.54836329]
[1747514464242,0.00644216,103260.0,103250.0,1.54836329]
[1747514464649,0.001,103260.0,103250.0,1.54836329]
[1747514464945,0.001,103260.0,103250.0,1.90916329]
[1747514466148,0.181,103260.0,103250.0,1.90916329]
[1747514472745,0.181,103260.0,103250.0,1.90900329]
[1747514473050,0.181,103260.0,103250.0,1.97688476]
[1747514473051,0.2117,103260.0,103250.0,1.97688476]
[1747514473244,0.0317,103260.0,103250.0,1.97688476]
[1747514473444,0.0628,103260.0,103250.0,1.97688476]
[1747514477854,0.0628,103260.0,103250.0,1.8485713]
[1747514478154,0.2428,103260.0,103250.0,1.8485713]
[1747514479457,0.2428,103260.0,103250.0,1.72619338]
[1747514479755,0.2428,103260.0,103250.0,1.8485713]
[1747514480256,0.0628,103260.0,103250.0,1.8485713]
[1747514483447,0.0628,103260.0,103250.0,1.91020495]
[1747514485958,0.0628,103260.0,103250.0,1.91564711]
[1747514487563,0.0628,103260.0,103250.0,1.70768711]
[1747514487760,0.0628,103260.0,103250.0,1.91556711]
[1747514489558,0.0628,103260.0,103250.0,1.98249043]
[1747514491264,0.0628,103260.0,103250.0,1.26089043]
[1747514491566,0.0628,103260.0,103250.0,1.98249043]
[1747514493365,0.0628,103260.0,103250.0,2.16249043]
[1747514495365,0.0628,103260.0,103250.0,1.44089043]
[1747514495667,0.0628,103260.0,103250.0,2.16249043]
[1747514496363,0.0628,103260.0,103250.0,1.98249043]
[1747514496564,0.0628,103260.0,103250.0,1.26089043]
[1747514496767,0.0628,103260.0,103250.0,1.98249043]
[1747514497263,0.0628,103260.0,103250.0,2.16249043]
[1747514498265,0.0628,103260.0,103250.0,1.44089043]
[1747514498563,0.0628,103260.0,103250.0,2.16249043]
[1747514499069,0.0628,103260.0,103250.0,1.98249043]
[1747514499769,0.0628,103260.0,103250.0,1.77461043]
[1747514500067,0.0628,103260.0,103250.0,2.16237043]
[1747514502168,0.0628,103260.0,103250.0,1.98237043]
[1747514502371,0.01958385,103260.0,103250.0,1.98237043]
[1747514503169,0.01958385,103260.0,103250.0,2.16237043]
[1747514504468,0.01958385,103260.0,103250.0,2.16233043]
[1747514505269,0.01958385,103260.0,103250.0,1.98233043]
[1747514505874,0.01958385,103260.0,103250.0,1.99465716]
[1747514507678,0.05201518,103270.0,103260.0,0.1936039]
[1747514507967,0.05201518,103270.0,103260.0,0.94740182]
[1747514508173,0.05201518,103270.0,103260.0,1.46227112]
[1747514509377,0.05201518,103270.0,103260.0,1.49337112]
[1747514510570,0.05201518,103270.0,103260.0,1.49881328]
[1747514512974,0.05201518,103270.0,103260.0,0.77721328]
[1747514513274,0.08491518,103270.0,103260.0,1.49881328]
[1747514515070,0.08491518,103270.0,103260.0,1.13801328]
[1747514515277,0.08491518,103270.0,103260.0,0.77721328]
[1747514515476,0.08491518,103270.0,103260.0,1.49881328]
[1747514515777,0.08491518,103270.0,103260.0,1.62742448]
[1747514516271,0.08491518,103270.0,103260.0,0.90582448]
[1747514516568,0.08491518,103270.0,103260.0,1.62742448]
[1747514517578,0.08491518,103270.0,103260.0,1.83502448]
[1747514518576,0.08491518,103270.0,103260.0,1.82958232]
[1747514518882,0.08491518,103270.0,103260.0,1.10798232]
[1747514519069,0.08491518,103270.0,103260.0,1.82958232]
[1747514519580,0.08491518,103270.0,103260.0,1.83502448]
[1747514522874,0.08491518,103270.0,103260.0,1.50504656]
[1747514523091,0.08491518,103270.0,103260.0,1.83498448]
[1747514528987,0.08491518,103270.0,103260.0,1.62742448]
[1747514529174,0.08491518,103270.0,103260.0,1.83494448]
[1747514529576,0.08491518,103270.0,103260.0,1.70633328]
[1747514531078,0.08491518,103270.0,103260.0,0.98473328]
[1747514531381,0.08491518,103270.0,103260.0,1.70633328]
[1747514531684,0.08491518,103270.0,103260.0,0.98473328]
[1747514531985,0.08491518,103270.0,103260.0,1.70633328]
[1747514533984,0.08491518,103270.0,103260.0,1.34553328]
[1747514534188,0.08491518,103270.0,103260.0,1.34549328]
[1747514534583,0.08491518,103270.0,103260.0,0.93009328]
[1747514536390,0.05261518,103270.0,103260.0,0.93009328]
[1747514537386,0.01971518,103270.0,103260.0,0.93009328]
[1747514537589,0.2887696,103280.0,103270.0,0.1935852]
[1747514537789,0.2887696,103280.0,103270.0,0.6492852]
[1747514539085,0.2887696,103280.0,103270.0,0.69752416]
[1747514539791,0.2887696,103280.0,103270.0,0.70738814]
[1747514540193,0.0952,103280.0,103270.0,0.70738814]
[1747514540395,0.2897664,103280.0,103270.0,0.70738814]
[1747514540792,0.2897664,103280.0,103270.0,0.7128303]
[1747514542893,0.2897664,103280.0,103270.0,0.3520303]
[1747514543193,0.2897664,103280.0,103270.0,0.7128303]
[1747514544493,0.41214432,103280.0,103270.0,0.76218051]
[1747514548896,0.41414432,103280.0,103270.0,0.76218051]
[1747514549088,0.41414432,103280.0,103270.0,0.40138051]
[1747514549394,0.41414432,103280.0,103270.0,0.76218051]
[1747514552797,0.41414432,103280.0,103270.0,0.40138051]
[1747514552987,0.41414432,103280.0,103270.0,0.76218051]
[1747514553800,0.41414432,103280.0,103270.0,0.40138051]
[1747514553990,0.41414432,103280.0,103270.0,0.76218051]
[1747514562905,0.41414432,103280.0,103270.0,0.40138051]
[1747514563103,0.41414432,103280.0,103270.0,0.76218051]
[1747514573804,0.41414432,103280.0,103270.0,0.40138051]
[1747514574012,0.41414432,103280.0,103270.0,0.76218051]
[1747514575112,0.41414432,103280.0,103270.0,0.40138051]
[1747514575313,0.41414432,103280.0,103270.0,0.76218051]
[1747514578112,0.41414432,103280.0,103270.0,0.40138051]
[1747514578518,0.41414432,103280.0,103270.0,0.76218051]
[1747514578705,0.41414432,103280.0,103270.0,0.40138051]
[1747514578907,0.41414432,103280.0,103270.0,0.76218051]
[1747514584717,0.41414432,103280.0,103270.0,0.39151653]
[1747514585113,0.41414432,103280.0,103270.0,0.40117597]
[1747514585314,0.35294432,103280.0,103270.0,0.40117597]
[1747514586121,0.32094432,103280.0,103270.0,0.40117597]
[1747514586414,0.12737792,103280.0,103270.0,0.40117597]
[1747514586622,0.1985664,103280.0,103270.0,0.40117597]
[1747514586823,0.1985664,103280.0,103270.0,0.76197597]
[1747514587327,0.1985664,103280.0,103270.0,0.40117597]
[1747514587623,0.32094432,103280.0,103270.0,0.40117597]
[1747514588627,0.38404432,103280.0,103270.0,0.39573381]
[1747514589515,0.38404432,103280.0,103270.0,0.40117597]
[1747514598822,0.38404432,103280.0,103270.0,0.39151653]
[1747514600831,0.41704432,103280.0,103270.0,0.39151653]
[1747514615530,0.1985664,103280.0,103270.0,0.39151653]
[1747514615729,0.1985664,103280.0,103270.0,0.87469445]
[1747514616036,0.005,103280.0,103270.0,1.08137445]
[1747514616232,0.005,103280.0,103270.0,1.26137445]
[1747514617329,0.004,103280.0,103270.0,1.26137445]
[1747514617525,0.002,103280.0,103270.0,1.26137445]
[1747514618139,0.002,103280.0,103270.0,1.2983994]
[1747514618340,0.002,103280.0,103270.0,1.34375526]
[1747514619941,0.002,103280.0,103270.0,1.70455526]
[1747514621843,0.002,103280.0,103270.0,1.6591994]
[1747514623143,0.002,103280.0,103270.0,1.62217445]
[1747514624743,0.40726311,103290.0,103280.0,0.1935664]
[1747514625046,0.35887481,103290.0,103280.0,0.6514664]
[1747514626243,0.35887481,103290.0,103280.0,0.8314664]
[1747514626747,0.35987481,103290.0,103280.0,0.8314664]
[1747514627141,0.36187481,103290.0,103280.0,0.8314664]
[1747514627445,0.48425273,103290.0,103280.0,0.8314664]
[1747514628341,0.33300562,103290.0,103280.0,0.8314664]
[1747514628851,0.33300562,103290.0,103280.0,0.4706664]
[1747514629147,0.33300562,103290.0,103280.0,0.8314664]
[1747514630853,0.33300562,103290.0,103280.0,0.4706664]
[1747514631038,0.33300562,103290.0,103280.0,0.83690856]
[1747514631747,0.33300562,103290.0,103280.0,0.87387812]
[1747514635666,0.36630562,103290.0,103280.0,0.87387812]
[1747514636060,0.17275792,103290.0,103280.0,0.87387812]
[1747514636261,0.33300562,103290.0,103280.0,0.87387812]
[1747514639270,0.13945792,103290.0,103280.0,0.87387812]
[1747514639471,0.01708,103290.0,103280.0,0.87387812]
[1747514640572,0.01708,103290.0,103280.0,0.99625604]
[1747514641265,0.01708,103290.0,103280.0,1.04449216]
[1747514642665,0.01708,103290.0,103280.0,1.25097216]
[1747514654878,0.2106277,103290.0,103280.0,1.25097216]
[1747514655180,0.2106277,103290.0,103280.0,1.12859424]
[1747514655384,0.33300562,103290.0,103280.0,1.33491424]
[1747514655573,0.39550572,103290.0,103280.0,1.33491424]
[1747514655779,0.36400572,103290.0,103280.0,0.92211424]
[1747514656077,0.36400572,103290.0,103280.0,0.74211424]
[1747514656673,0.39550572,103290.0,103280.0,0.94843424]
[1747514656868,0.42670572,103290.0,103280.0,0.74211424]
[1747514657074,0.42670572,103290.0,103280.0,0.55459424]
[1747514657075,0.96750572,103290.0,103280.0,0.55459424]
[1747514657275,0.96750572,103290.0,103280.0,0.34831424]
[1747514658171,0.78750572,103290.0,103280.0,0.34831424]
[1747514658377,0.78750572,103290.0,103280.0,0.31631424]
[1747514659286,0.96750572,103290.0,103280.0,0.31631424]
[1747514660291,0.96750572,103290.0,103280.0,0.26807812]
[1747514662088,0.78750572,103290.0,103280.0,0.26807812]
[1747514662583,0.78750572,103290.0,103280.0,0.26263596]
[1747514662782,0.78750572,103290.0,103280.0,0.3108243]
[1747514663888,0.78750572,103290.0,103280.0,0.26263596]
[1747514665582,0.78750572,103290.0,103280.0,0.26807812]
[1747514670497,0.42670572,103290.0,103280.0,0.30077812]
[1747514670696,0.78750572,103290.0,103280.0,0.33077812]
[1747514670989,0.42670572,103290.0,103280.0,0.33077812]
[1747514673596,0.42670572,103290.0,103280.0,0.29380856]
[1747514673785,0.42670572,103290.0,103280.0,0.2883664]
[1747514674800,0.42670572,103290.0,103280.0,0.29380856]
[1747514676896,0.33300572,103290.0,103280.0,0.29380856]
[1747514678189,0.33300572,103290.0,103280.0,0.33077812]
[1747514680095,0.39560572,103290.0,103280.0,0.33077812]
[1747514681998,0.42790572,103290.0,103280.0,0.32533596]
[1747514682996,0.42790572,103290.0,103280.0,0.33077812]
[1747514684098,0.36440572,103290.0,103280.0,0.33077812]
[1747514687301,0.36440572,103290.0,103280.0,0.51077812]
[1747514688201,0.36440572,103290.0,103280.0,0.33077812]
[1747514689394,0.33300572,103290.0,103280.0,0.33077812]
[1747514689797,0.2106278,103290.0,103280.0,0.89761812]
[1747514690000,0.01708,103290.0,103280.0,0.89761812]
[1747514690306,0.2106278,103290.0,103280.0,0.89761812]
[1747514690798,0.01708,103290.0,103280.0,0.89761812]
[1747514691002,0.2106278,103290.0,103280.0,0.94038945]
[1747514694408,0.33300572,103290.0,103280.0,0.94038945]
[1747514696111,0.33300572,103290.0,103280.0,0.9527701]
[1747514698814,0.33300572,103290.0,103280.0,0.5919701]
[1747514699009,0.33300572,103290.0,103280.0,0.9527701]
[1747514700815,0.01708,103290.0,103280.0,1.07514802]
[1747514701013,0.2106278,103290.0,103280.0,1.07514802]
[1747514702108,0.2106278,103290.0,103280.0,0.9527701]
[1747514703318,0.33300572,103290.0,103280.0,0.9527701]
[1747514703914,0.2106278,103290.0,103280.0,0.9527701]
[1747514704115,0.33300572,103290.0,103280.0,0.9527701]
[1747514704416,0.33300572,103290.0,103280.0,0.90455661]
[1747514704606,0.2106278,103290.0,103280.0,0.90455661]
[1747514706212,0.2106278,103290.0,103280.0,0.89215929]
[1747514707822,0.20812907,103290.0,103280.0,0.89215929]
[1747514712523,0.33050699,103290.0,103280.0,0.89215929]
[1747514714519,0.33050699,103290.0,103280.0,0.94035192]
[1747514715622,0.20812907,103290.0,103280.0,0.94035192]
[1747514715827,0.33050699,103290.0,103280.0,0.94035192]
[1747514716627,0.20812907,103290.0,103280.0,0.94035192]
[1747514717729,0.20812907,103290.0,103280.0,1.06272984]
[1747514718030,0.20812907,103290.0,103280.0,1.07512716]
[1747514719827,0.20812907,103290.0,103280.0,0.95274924]
[1747514721833,0.33050699,103290.0,103280.0,0.95274924]
[1747514722738,0.33050699,103290.0,103280.0,0.95246924]
[1747514723037,0.36350699,103290.0,103280.0,0.95246924]
[1747514725437,0.36350699,103290.0,103280.0,0.59166924]
[1747514725734,0.36350699,103290.0,103280.0,0.95246924]
[1747514727037,0.36350699,103290.0,103280.0,0.95242924]
[1747514727237,0.42640699,103290.0,103280.0,0.95242924]
[1747514730836,0.42640699,103290.0,103280.0,0.59162924]
[1747514732441,0.42640699,103290.0,103280.0,0.57926215]
[1747514733544,0.42640699,103290.0,103280.0,0.37354215]
[1747514733843,0.78720699,103290.0,103280.0,0.34354215]
[1747514734338,0.96720699,103290.0,103280.0,0.34354215]
[1747514734534,0.60640699,103290.0,103280.0,0.34354215]
[1747514735044,0.60640699,103290.0,103280.0,0.29534952]
[1747514735238,0.60640699,103290.0,103280.0,0.32664952]
[1747514735239,0.96720699,103290.0,103280.0,0.32664952]
[1747514737138,0.60640699,103290.0,103280.0,0.32664952]
[1747514737343,0.96720699,103290.0,103280.0,0.32664952]
[1747514737539,0.60640699,103290.0,103280.0,0.32664952]
[1747514737743,0.96720699,103290.0,103280.0,0.32664952]
[1747514741337,0.60640699,103290.0,103280.0,0.32664952]
[1747514750150,0.42640699,103290.0,103280.0,0.32664952]
[1747514755052,0.04758127,103290.0,103280.0,0.32664952]
[1747514755259,0.19458127,103290.0,103280.0,0.80982744]
[1747514755847,0.38812897,103290.0,103280.0,0.80982744]
[1747514756151,0.20812897,103290.0,103280.0,0.80982744]
[1747514756454,0.01458127,103290.0,103280.0,0.80982744]
[1747514757256,0.20812907,103290.0,103280.0,0.80982744]
[1747514758056,0.20812907,103290.0,103280.0,0.85803243]
[1747514761752,0.20812907,103290.0,103280.0,0.73565451]
[1747514762946,0.20812907,103290.0,103280.0,0.85803243]
[1747514764261,0.20812907,103290.0,103280.0,0.73565451]
[1747514764958,0.20812907,103290.0,103280.0,0.37485451]
[1747514765154,0.20812907,103290.0,103280.0,0.73565451]
[1747514766360,0.33050699,103290.0,103280.0,0.94113451]
[1747514766752,0.33050699,103290.0,103280.0,0.58033451]
[1747514766954,0.33050699,103290.0,103280.0,0.37485451]
[1747514767154,0.60610699,103290.0,103280.0,0.37485451]
[1747514768166,0.42610699,103290.0,103280.0,0.37485451]
[1747514769063,0.42610699,103290.0,103280.0,0.32664952]
[1747514772366,0.42610699,103290.0,103280.0,0.37599973]
[1747514773665,0.42610699,103290.0,103280.0,0.42421083]
[1747514773870,0.42610699,103290.0,103280.0,0.62961083]
[1747514775270,0.42610699,103290.0,103280.0,0.37599973]
[1747514775467,0.78690699,103290.0,103280.0,0.58139973]
[1747514776166,0.96690699,103290.0,103280.0,0.58139973]
[1747514777172,0.96690699,103290.0,103280.0,0.34469973]
[1747514779168,0.60610699,103290.0,103280.0,0.34469973]
[1747514779468,0.96690699,103290.0,103280.0,0.34469973]
[1747514780070,0.60610699,103290.0,103280.0,0.37469973]
[1747514780261,0.96690699,103290.0,103280.0,0.42291425]
[1747514782271,0.96690699,103290.0,103280.0,0.37356404]
[1747514783676,0.60610699,103290.0,103280.0,0.37356404]
[1747514786979,0.60610699,103290.0,103280.0,0.32534952]
[1747514790688,0.60610699,103290.0,103280.0,0.37356702]
[1747514791191,0.42610699,103290.0,103280.0,0.37356702]
[1747514793685,0.30372907,103290.0,103280.0,0.37356702]
[1747514793887,0.33050699,103290.0,103280.0,0.37356702]
[1747514794089,0.51050699,103290.0,103280.0,0.37356702]
[1747514795095,0.33050699,103290.0,103280.0,0.37356702]
[1747514796791,0.36120699,103290.0,103280.0,0.37356702]
[1747514797192,0.42490699,103290.0,103280.0,0.37356702]
[1747514798399,0.42490699,103290.0,103280.0,0.32534952]
[1747514801106,0.60490699,103290.0,103280.0,0.32534952]
[1747514801398,0.60490699,103290.0,103280.0,0.37358316]
[1747514807001,0.96570699,103290.0,103280.0,0.34358316]
[1747514807202,0.96570699,103290.0,103280.0,0.11731676]
[1747514807203,1.08808491,103290.0,103280.0,0.11731676]
[1747514807595,1.08808491,103290.0,103280.0,0.31088336]
[1747514807903,0.96570699,103290.0,103280.0,0.11731676]
[1747514808100,1.08808491,103290.0,103280.0,0.11731676]
[1747514808309,1.08808491,103290.0,103280.0,0.06908312]
[1747514809207,1.49860491,103290.0,103280.0,0.06908312]
[1747514809409,1.49860491,103290.0,103280.0,0.03698312]
[1747514809811,1.49860491,103290.0,103280.0,0.06738312]
[1747514810706,1.29340491,103290.0,103280.0,0.06738312]
[1747514810904,1.49860491,103290.0,103280.0,0.06738312]
[1747514811103,1.37622699,103290.0,103280.0,0.06738312]
[1747514812811,1.37622699,103290.0,103280.0,0.0304]
[1747514814011,1.49860491,103290.0,103280.0,0.0304]
[1747514820313,1.86159798,103290.0,103280.0,0.0304]
[1747514821704,0.1935673,103280.0,103270.0,0.2637045]
[1747514821907,0.89352314,103280.0,103270.0,0.2960045]
[1747514822110,1.07352314,103280.0,103270.0,0.2648058]
[1747514822913,1.07352314,103280.0,103270.0,0.2961058]
[1747514823309,1.07352314,103280.0,103270.0,0.25912268]
[1747514824218,1.08623969,103280.0,103270.0,0.25912268]
[1747514824717,1.08923969,103280.0,103270.0,0.25912258]
[1747514825712,1.08923969,103280.0,103270.0,0.06553658]
[1747514825918,1.08923969,103280.0,103270.0,0.03423658]
[1747514827113,1.08923969,103280.0,103270.0,0.06523658]
[1747514827821,1.08923969,103280.0,103270.0,0.03423658]
[1747514828017,0.1935861,103270.0,103260.0,0.06908312]
[1747514828319,1.30712194,103270.0,103260.0,0.06768312]
[1747514828818,1.18474402,103270.0,103260.0,0.06768312]
[1747514829122,0.95446402,103270.0,103260.0,0.09978312]
[1747514829316,1.36674402,103270.0,103260.0,0.09978312]
[1747514830019,1.36774402,103270.0,103260.0,0.09978312]
[1747514833233,1.36774402,103270.0,103260.0,0.13018312]
[1747514834529,1.36774402,103270.0,103260.0,0.0932]
[1747514835422,1.51899113,103270.0,103260.0,0.0932]
[1747514835735,1.39661321,103270.0,103260.0,0.0932]
[1747514835930,1.51899113,103270.0,103260.0,0.0932]
[1747514837635,1.51899113,103270.0,103260.0,0.2868049]
[1747514837836,1.31387113,103270.0,103260.0,0.2868049]
[1747514838036,1.42125113,103270.0,103260.0,0.2868049]
[1747514838631,1.21617113,103270.0,103260.0,0.2868049]
[1747514838836,1.42125113,103270.0,103260.0,0.2868049]
[1747514839037,1.01101113,103270.0,103260.0,0.2868049]
[1747514839236,0.83101113,103270.0,103260.0,0.2868049]
[1747514839840,0.70863321,103270.0,103260.0,0.2868049]
[1747514840041,0.83101113,103270.0,103260.0,0.2868049]
[1747514843550,0.47021113,103270.0,103260.0,0.2868049]
[1747514846045,0.83101113,103270.0,103260.0,0.2868049]
[1747514852849,0.70863321,103270.0,103260.0,0.2868049]
[1747514853049,0.83101113,103270.0,103260.0,0.2868049]
[1747514857458,0.86111113,103270.0,103260.0,0.2868049]
[1747514860458,0.89191113,103270.0,103260.0,0.2868049]